fUST/lending_fUST_20241231
["ID","MTS","AMOUNT","RATE_DAILY","PERIOD"]
[347247682,1735629041168,-151.0,0.00019726,2]
[347247683,1735629041178,-500.0,0.00019726,3]
[347247684,1735629041187,-1351.33,0.00019726,3]
[347247685,1735629041196,-1180.98,0.00019726,3]
[347247686,1735629041205,-151.0,0.00019726,2]
[347247687,1735629041214,-151.0,0.00019726,2]
[347247688,1735629041223,-500.0,0.00019726,3]
[347247689,1735629041232,-340.656631,0.00019726,2]
[347247690,1735629041241,-340.656631,0.00019726,2]
[347247691,1735629041250,-500.0,0.00019726,3]
[347247692,1735629041260,-340.656631,0.00019726,2]
[347247693,1735629041269,-340.656631,0.00019726,2]
[347247694,1735629041278,-500.0,0.00019726,3]
[347247695,1735629041288,-500.0,0.00019726,3]
[347247696,1735629041297,-500.0,0.00019726,3]
[347247697,1735629041307,-151.0,0.00019726,2]
[347247698,1735629041318,-294.004446,0.00019726,2]
[347247699,1735629041327,-500.0,0.00019726,3]
[347247700,1735629041336,-500.0,0.00019726,3]
[347247701,1735629041345,-500.0,0.00019726,3]
[347247702,1735629041354,-505.08678835,0.00019726,3]
[347247703,1735629041364,-500.0,0.00019726,3]
[347247704,1735629041373,-500.0,0.00019726,3]
[347247705,1735629041383,-500.0,0.00019726,3]
[347247706,1735629041392,-500.0,0.00019726,3]
[347247707,1735629041402,-534.58698682,0.00019726,3]
[347247708,1735629041411,-500.0,0.00019726,3]
[347247709,1735629041420,-500.0,0.00019726,3]
[347247710,1735629041430,-643.48,0.00019726,3]
[347247711,1735629041440,-3138.54,0.00019726,3]
[347247712,1735629041450,-500.0,0.00019726,3]
[347247713,1735629041459,-151.0,0.00019726,2]
[347247714,1735629041468,-151.0,0.00019726,2]
[347247715,1735629041478,-1097.91,0.00019726,3]
[347247716,1735629041487,-500.0,0.00019726,3]
[347247717,1735629041497,-500.0,0.00019726,3]
[347247718,1735629041507,-500.0,0.00019726,3]
[347247719,1735629041516,-507.67376025,0.00019726,3]
[347247720,1735629041527,-500.0,0.00019726,3]
[347247721,1735629041536,-500.0,0.00019726,3]
[347247722,1735629041546,-11337.98,0.00019726,3]
[347247723,1735629041554,-500.0,0.00019726,3]
[347247724,1735629041564,-500.0,0.00019726,3]
[347247725,1735629041574,-500.0,0.00019726,3]
[347247726,1735629041583,-151.0,0.00019726,2]
[347247727,1735629041593,-151.0,0.00019726,2]
[347247728,1735629041602,-773.86,0.00019726,3]
[347247729,1735629041611,-500.0,0.00019726,3]
[347247730,1735629041621,-151.0,0.0001998,2]
[347247731,1735629041630,-218.041238,0.0001998,2]
[347247732,1735629041639,-1213.53,0.00019998,3]
[347247733,1735629041649,-981.94,0.00019999,3]
[347247734,1735629041658,-981.94,0.00019999,3]
[347247735,1735629041667,-2015.67,0.00019999,3]
[347247736,1735629041677,-1213.53,0.00019999,3]
[347247737,1735629041686,-163.54198888,0.0002,2]
[347247738,1735629041695,-151.0,0.0002,2]
[347247739,1735629041704,-151.0,0.0002,2]
[347247740,1735629041713,-151.0,0.0002,2]
[347247741,1735629041723,-151.0,0.0002,2]
[347247742,1735629041732,-151.0,0.0002,2]
[347247743,1735629041742,-500.0,0.0002,3]
[347247744,1735629041751,-227.839086,0.0002,2]
[347247745,1735629041760,-227.839086,0.0002,2]
[347247746,1735629041770,-227.839086,0.0002,2]
[347247747,1735629041779,-227.839086,0.0002,2]
[347247748,1735629041789,-500.0,0.0002,3]
[347247749,1735629041799,-151.0,0.0002,2]
[347247750,1735629041808,-500.0,0.0002,3]
[347247751,1735629041819,-1351.33,0.0002,3]
[347247752,1735629041828,-1180.98,0.0002,3]
[347247753,1735629041838,-151.0,0.0002,2]
[347247754,1735629041848,-151.0,0.0002,2]
[347247755,1735629041858,-500.0,0.0002,3]
[347247756,1735629041867,-340.656631,0.0002,2]
[347247757,1735629041876,-500.0,0.0002,3]
[347247758,1735629041885,-340.656631,0.0002,2]
[347247759,1735629041894,-514.30524425,0.0002,3]
[347247760,1735629041903,-500.0,0.0002,3]
[347247761,1735629041912,-500.0,0.0002,3]
[347247762,1735629041921,-500.0,0.0002,3]
[347247763,1735629041930,-500.0,0.0002,3]
[347247764,1735629041940,-500.0,0.0002,3]
[347247765,1735629041949,-500.0,0.0002,3]
[347247766,1735629041958,-500.0,0.0002,3]
[347247767,1735629041967,-500.0,0.0002,3]
[347247768,1735629041976,-500.0,0.0002,3]
[347247769,1735629041985,-500.0,0.0002,3]
[347247770,1735629041995,-643.48,0.0002,3]
[347247771,1735629042004,-3138.54,0.0002,3]
[347247772,1735629042013,-500.0,0.0002,3]
[347247773,1735629042022,-151.0,0.0002,2]
[347247774,1735629042031,-1097.91,0.0002,3]
[347247775,1735629042041,-319.14,0.0002,3]
[347247776,1735629042052,-500.0,0.0002,3]
[347247777,1735629042061,-500.0,0.0002,3]
[347247778,1735629042071,-500.0,0.0002,3]
[347247779,1735629042080,-11337.98,0.0002,3]
[347247780,1735629042089,-500.0,0.0002,3]
[347247781,1735629042098,-500.0,0.0002,3]
[347247782,1735629042107,-623.04599707,0.0002,3]
[347247783,1735629042117,-151.0,0.0002,2]
[347247784,1735629042126,-151.0,0.0002,2]
[347247785,1735629042138,-773.86,0.0002,3]
[347247786,1735629042147,-500.0,0.0002,3]
[347247787,1735629042157,-480.38767472,0.00020062,2]
[347247788,1735629042166,-1213.53,0.00020198,3]
[347247789,1735629042175,-340.656631,0.00020199,2]
[347247790,1735629042185,-340.656631,0.00020199,2]
[347247791,1735629042194,-151.0,0.00020272,2]
[347247792,1735629042203,-151.0,0.00020272,2]
[347247793,1735629042216,-151.0,0.00020272,2]
[347247794,1735629042225,-981.94,0.00020272,3]
[347247795,1735629042234,-151.0,0.00020272,2]
[347247796,1735629042244,-1213.53,0.00020272,3]
[347247797,1735629042253,-151.0,0.00020273,2]
[347247798,1735629042262,-151.0,0.00020273,2]
[347247799,1735629042272,-152.85006,0.00020273,2]
[347247800,1735629042281,-151.0,0.00020273,2]
[347247801,1735629042291,-151.0,0.00020273,2]
[347247802,1735629042301,-151.0,0.00020273,2]
[347247803,1735629042311,-2015.67,0.00020273,3]
[347247804,1735629042320,-500.0,0.00020273,3]
[347247805,1735629042331,-227.839086,0.00020273,2]
[347247806,1735629042340,-227.839086,0.00020273,2]
[347247807,1735629042349,-227.839086,0.00020273,2]
[347247808,1735629042358,-227.839086,0.00020273,2]
[347247809,1735629042367,-500.0,0.00020273,3]
[347247810,1735629042377,-151.0,0.00020273,2]
[347247811,1735629042386,-151.0,0.00020273,2]
[347247812,1735629042396,-500.0,0.00020273,3]
[347247813,1735629042405,-1351.33,0.00020273,3]
[347247814,1735629042414,-1180.98,0.00020273,3]
[347247815,1735629042423,-151.0,0.00020273,2]
[347247816,1735629042433,-151.0,0.00020273,2]
[347247817,1735629042442,-500.0,0.00020273,3]
[347247818,1735629042451,-500.0,0.00020273,3]
[347247819,1735629042460,-340.656631,0.00020273,2]
[347247820,1735629042469,-340.656631,0.00020273,2]
[347247821,1735629042478,-500.0,0.00020273,3]
[347247822,1735629042487,-500.0,0.00020273,3]
[347247823,1735629042496,-500.0,0.00020273,3]
[347247824,1735629042505,-500.0,0.00020273,3]
[347247825,1735629042514,-500.0,0.00020273,3]
[347247826,1735629042524,-500.0,0.00020273,3]
[347247827,1735629042533,-500.0,0.00020273,3]
[347247828,1735629042543,-500.0,0.00020273,3]
[347247829,1735629042553,-500.0,0.00020273,3]
[347247830,1735629042562,-500.0,0.00020273,3]
[347247831,1735629042571,-643.48,0.00020273,3]
[347247832,1735629042580,-3138.54,0.00020273,3]
[347247833,1735629042666,-500.0,0.00020273,3]
[347247834,1735629042676,-151.0,0.00020273,2]
[347247835,1735629042685,-1097.91,0.00020273,3]
[347247836,1735629042696,-500.0,0.00020273,3]
[347247837,1735629042705,-500.0,0.00020273,3]
[347247838,1735629042715,-500.0,0.00020273,3]
[347247839,1735629042724,-9021.28420206,0.00020273,3]
[347247890,1735629533979,-155.38,0.00021,31]
[347247891,1735629534003,-155.38,0.00021,31]
[347247892,1735629534027,-155.38,0.00021,31]
[347247893,1735629534050,-155.38,0.00021,31]
[347247894,1735629534072,-155.38,0.00021,31]
[347247895,1735629534095,-155.38,0.00021,31]
[347247896,1735629534118,-155.38,0.00021,31]
[347247897,1735629534153,-0.28,0.00021544,60]
[347247912,1735630035134,-204.568624,0.00013155,2]
[347247913,1735630035157,-204.568624,0.00013288,2]
[347247914,1735630035180,-204.568624,0.00013973,2]
[347247915,1735630035218,-569.9681155,0.00017985,2]
[347247916,1735630035253,-885.3665327,0.00018267,2]
[347247917,1735630036131,-1566.8181874,0.00018267,2]
[347247920,1735630141269,-204.568624,0.00013023,2]
[347247921,1735630141290,-220.24883904,0.00013286,2]
[347247922,1735630141312,-12447.8152799,0.00018267,2]
[347247923,1735630141333,-160.0,0.00018849,3]
[347247924,1735630141354,-161.92417456,0.00019078,2]
[347247925,1735630141375,-1378.60544451,0.00019078,2]
[347247926,1735630141395,-501.25879212,0.00019173,2]
[347247927,1735630141416,-150.0,0.00019177,2]
[347247928,1735630141435,-500.0,0.00019177,2]
[347247929,1735630141458,-160.59,0.00019177,2]
[347247930,1735630141478,-500.0,0.00019177,2]
[347247931,1735630141498,-500.0,0.00019177,2]
[347247932,1735630141519,-500.0,0.00019177,2]
[347247933,1735630141540,-500.0,0.00019177,2]
[347247934,1735630141559,-188.42997471,0.00019177,2]
[347247935,1735630141579,-498.85451559,0.00019177,2]
[347247936,1735630141600,-526.92663469,0.00019177,2]
[347247937,1735630141624,-500.0,0.00019177,2]
[347247938,1735630141644,-177.60205171,0.00019177,2]
[347247939,1735630141666,-500.0,0.00019177,2]
[347247940,1735630141686,-369.60794487,0.00019177,2]
[347247941,1735630141712,-500.0,0.00019178,2]
[347247942,1735630141733,-500.0,0.00019178,2]
[347247943,1735630141753,-500.0,0.00019178,2]
[347247944,1735630141774,-252.99665605,0.00019178,2]
[347247945,1735630141794,-500.0,0.00019178,2]
[347247946,1735630141815,-502.22888141,0.00019178,2]
[347247947,1735630141835,-500.0,0.00019178,2]
[347247948,1735630141855,-612.37743671,0.00019178,2]
[347247949,1735630141875,-504.01882891,0.00019178,2]
[347247950,1735630141896,-500.0,0.00019178,2]
[347247951,1735630141917,-500.0,0.00019178,2]
[347247952,1735630141937,-472.42960905,0.00019178,2]
[347247953,1735630141959,-504.55676559,0.00019178,2]
[347247954,1735630141979,-503.75981729,0.00019178,2]
[347247955,1735630141999,-507.09358732,0.00019178,2]
[347247956,1735630142020,-503.00490823,0.00019178,2]
[347247957,1735630142041,-500.0,0.00019178,2]
[347247958,1735630142061,-500.0,0.00019178,2]
[347247959,1735630142082,-501.43840897,0.00019178,2]
[347247960,1735630142102,-500.0,0.00019178,2]
[347247961,1735630142123,-500.0,0.00019178,2]
[347247962,1735630142143,-500.25598904,0.00019178,2]
[347247963,1735630142165,-502.20479266,0.00019178,2]
[347247964,1735630142185,-501.39075931,0.00019178,2]
[347247965,1735630142206,-500.0,0.00019178,2]
[347247966,1735630142226,-504.06961273,0.00019178,2]
[347247967,1735630142246,-500.65527097,0.00019178,2]
[347247968,1735630142266,-501.48726141,0.00019178,2]
[347247969,1735630142286,-500.0,0.00019178,2]
[347247970,1735630142306,-502.39181019,0.00019178,2]
[347247971,1735630142325,-503.60286362,0.00019178,2]
[347247972,1735630142345,-500.0,0.00019178,2]
[347247973,1735630142364,-503.36010077,0.00019178,2]
[347247974,1735630142383,-500.0,0.00019178,2]
[347247975,1735630142403,-266.55053983,0.00019178,2]
[347247976,1735630142423,-500.0,0.00019178,2]
[347247977,1735630142445,-611.5782649,0.00019178,2]
[347247978,1735630142465,-500.0,0.00019178,2]
[347247979,1735630142486,-500.0,0.00019178,2]
[347247980,1735630142506,-500.0,0.00019178,2]
[347247981,1735630142527,-642.78897704,0.00019178,2]
[347247982,1735630142548,-500.0,0.00019178,2]
[347247983,1735630142570,-500.0,0.00019178,2]
[347247984,1735630142591,-533.64627158,0.00019178,2]
[347247985,1735630142616,-500.0,0.00019178,2]
[347247986,1735630142638,-500.0,0.00019178,2]
[347247987,1735630142660,-500.0,0.00019178,2]
[347247988,1735630142680,-500.0,0.00019178,2]
[347247989,1735630142702,-502.05869906,0.00019178,2]
[347247990,1735630142723,-500.0,0.00019178,2]
[347247991,1735630142744,-500.0,0.00019178,2]
[347247992,1735630142764,-502.75406024,0.00019178,2]
[347247993,1735630142786,-500.0,0.00019178,2]
[347247994,1735630142806,-500.0,0.00019178,2]
[347247995,1735630142827,-500.0,0.00019178,2]
[347247996,1735630142848,-500.92723709,0.00019178,2]
[347247997,1735630142868,-500.0,0.00019178,2]
[347247998,1735630142888,-500.79148446,0.00019178,2]
[347247999,1735630142909,-500.0,0.00019178,2]
[347248000,1735630142931,-500.0,0.00019178,2]
[347248001,1735630142953,-500.0,0.00019178,2]
[347248002,1735630142975,-500.0,0.00019178,2]
[347248003,1735630142995,-502.58313768,0.00019178,2]
[347248004,1735630143016,-151.0,0.00019178,2]
[347248005,1735630143039,-151.0,0.00019178,2]
[347248006,1735630143148,-151.0,0.00019178,2]
[347248007,1735630143170,-502.19852317,0.00019178,2]
[347248008,1735630143192,-500.0,0.00019178,2]
[347248009,1735630143213,-500.0,0.00019178,2]
[347248010,1735630143236,-500.0,0.00019178,2]
[347248011,1735630143256,-500.0,0.00019178,2]
[347248012,1735630143278,-500.0,0.00019178,2]
[347248013,1735630143299,-317.31725306,0.00019178,2]
[347248014,1735630143320,-500.0,0.00019178,2]
[347248015,1735630143342,-500.0,0.00019178,2]
[347248016,1735630143372,-500.0,0.00019178,2]
[347248017,1735630143393,-500.78839618,0.00019178,2]
[347248018,1735630143414,-501.60191426,0.00019178,2]
[347248019,1735630143435,-154.99,0.00019178,2]
[347248020,1735630143457,-500.0,0.00019178,2]
[347248021,1735630143478,-500.0,0.00019178,2]
[347248022,1735630143501,-500.0,0.00019178,2]
[347248023,1735630143524,-500.0,0.00019178,2]
[347248024,1735630143546,-431.29385124,0.00019178,2]
[347248025,1735630143568,-500.0,0.00019178,2]
[347248026,1735630143590,-500.0,0.00019178,2]
[347248027,1735630143613,-500.0,0.00019178,2]
[347248028,1735630143636,-399.44066373,0.00019178,2]
[347248029,1735630143659,-500.0,0.00019178,2]
[347248030,1735630143680,-500.0,0.00019178,2]
[347248031,1735630143702,-500.0,0.00019178,2]
[347248032,1735630143723,-500.0,0.00019178,2]
[347248033,1735630143745,-500.0,0.00019178,2]
[347248034,1735630143765,-239.47339856,0.00019178,2]
[347248035,1735630143785,-151.0,0.00019178,2]
[347248036,1735630143806,-500.0,0.00019178,2]
[347248037,1735630143827,-500.0,0.00019178,2]
[347248038,1735630143849,-500.0,0.00019178,2]
[347248039,1735630143870,-504.80351625,0.00019178,2]
[347248040,1735630143894,-1638.11,0.00019178,2]
[347248041,1735630143915,-502.1249605,0.00019178,2]
[347248042,1735630143937,-500.0,0.00019178,2]
[347248043,1735630143958,-500.0,0.00019178,2]
[347248044,1735630143980,-500.0,0.00019178,2]
[347248045,1735630144002,-500.0,0.00019178,2]
[347248046,1735630144023,-501.3013481,0.00019178,2]
[347248047,1735630144044,-500.0,0.00019178,2]
[347248048,1735630144065,-500.0,0.00019178,2]
[347248049,1735630144087,-500.0,0.00019178,2]
[347248050,1735630144108,-500.0,0.00019178,2]
[347248051,1735630144130,-505.81163945,0.00019178,2]
[347248052,1735630144151,-500.0,0.00019178,2]
[347248053,1735630144172,-462.50722586,0.00019178,2]
[347248054,1735630144193,-500.0,0.00019178,2]
[347248055,1735630144214,-500.0,0.00019178,2]
[347248056,1735630144235,-225.3724836,0.00019178,2]
[347248057,1735630144256,-500.0,0.00019178,2]
[347248058,1735630144277,-500.0,0.00019178,2]
[347248059,1735630144298,-500.0,0.00019178,2]
[347248060,1735630144320,-500.0,0.00019178,2]
[347248061,1735630144341,-500.0,0.00019178,2]
[347248062,1735630144362,-512.18046495,0.00019178,2]
[347248063,1735630144383,-639.57725096,0.00019178,2]
[347248064,1735630144404,-500.0,0.00019178,2]
[347248065,1735630144425,-500.20030036,0.00019178,2]
[347248066,1735630144447,-500.0,0.00019178,2]
[347248067,1735630144467,-500.77397518,0.00019178,2]
[347248068,1735630144487,-500.0,0.00019178,2]
[347248069,1735630144508,-500.0,0.00019178,2]
[347248070,1735630144528,-495.25731711,0.00019178,2]
[347248071,1735630144550,-369.38004578,0.00019178,2]
[347248072,1735630144571,-151.0,0.00019178,2]
[347248073,1735630144593,-151.0,0.00019178,2]
[347248074,1735630144616,-151.0,0.00019178,2]
[347248075,1735630144637,-500.0,0.00019178,2]
[347248076,1735630144659,-500.0,0.00019178,2]
[347248077,1735630144679,-500.0,0.00019178,2]
[347248078,1735630144700,-500.0,0.00019178,2]
[347248079,1735630144720,-500.0,0.00019178,2]
[347248080,1735630144742,-500.0,0.00019178,2]
[347248081,1735630144762,-501.56261308,0.00019178,2]
[347248082,1735630144783,-500.0,0.00019178,2]
[347248083,1735630144805,-500.0,0.00019178,2]
[347248084,1735630144828,-714.82,0.00019178,2]
[347248085,1735630144849,-500.0,0.00019178,2]
[347248086,1735630144870,-500.56423163,0.00019178,2]
[347248087,1735630144891,-500.0,0.00019178,2]
[347248088,1735630144911,-500.0,0.00019178,2]
[347248089,1735630144932,-500.0,0.00019178,2]
[347248090,1735630144954,-500.0,0.00019178,2]
[347248091,1735630144975,-500.56893365,0.00019178,2]
[347248092,1735630144995,-151.0,0.00019178,2]
[347248093,1735630145016,-500.0,0.00019178,2]
[347248094,1735630145038,-151.0,0.00019178,2]
[347248095,1735630145058,-151.0,0.00019178,2]
[347248096,1735630145078,-500.0,0.00019178,2]
[347248097,1735630145098,-500.0,0.00019178,2]
[347248098,1735630145119,-151.0,0.00019178,2]
[347248099,1735630145140,-151.0,0.00019178,2]
[347248100,1735630145161,-151.0,0.00019178,2]
[347248101,1735630145181,-500.0,0.00019178,2]
[347248102,1735630145202,-500.0,0.00019178,2]
[347248103,1735630145298,-500.0,0.00019178,2]
[347248104,1735630145320,-500.0,0.00019178,2]
[347248105,1735630145340,-151.0,0.00019178,2]
[347248106,1735630145362,-540.91,0.00019178,2]
[347248107,1735630145382,-152.796695,0.00019178,2]
[347248108,1735630145404,-500.0,0.00019178,2]
[347248109,1735630145424,-500.0,0.00019178,2]
[347248110,1735630145446,-504.44990867,0.00019178,2]
[347248111,1735630145467,-500.0,0.00019178,2]
[347248112,1735630145487,-502.87977265,0.00019178,2]
[347248113,1735630145509,-500.0,0.00019178,2]
[347248114,1735630145531,-500.0,0.00019178,2]
[347248115,1735630145552,-500.0,0.00019178,2]
[347248116,1735630145573,-500.0,0.00019178,2]
[347248117,1735630145593,-504.25215801,0.00019178,2]
[347248118,1735630145617,-500.0,0.00019178,2]
[347248119,1735630145638,-207.41611707,0.00019178,2]
[347248120,1735630145660,-501.1553175,0.00019178,2]
[347248121,1735630145682,-500.0,0.00019178,2]
[347248122,1735630145706,-1095.84,0.00019178,2]
[347248123,1735630145730,-738.24,0.00019178,2]
[347248124,1735630145753,-738.24,0.00019178,2]
[347248125,1735630145775,-500.0,0.00019178,2]
[347248126,1735630145795,-500.0,0.00019178,2]
[347248127,1735630145817,-500.0,0.00019178,2]
[347248128,1735630145838,-500.0,0.00019178,2]
[347248129,1735630145860,-500.0,0.00019178,2]
[347248130,1735630145882,-500.0,0.00019178,2]
[347248131,1735630145903,-292.533554,0.00019178,2]
[347248132,1735630145926,-500.0,0.00019178,2]
[347248133,1735630145947,-500.0,0.00019178,2]
[347248134,1735630145969,-500.0,0.00019178,2]
[347248135,1735630145991,-500.0,0.00019178,2]
[347248136,1735630146014,-151.0,0.00019178,2]
[347248137,1735630146036,-151.0,0.00019178,2]
[347248138,1735630146058,-151.0,0.00019178,2]
[347248139,1735630146079,-502.03270026,0.00019178,2]
[347248140,1735630146100,-500.0,0.00019178,2]
[347248141,1735630146121,-500.0,0.00019178,2]
[347248142,1735630146143,-504.0,0.00019178,2]
[347248143,1735630146164,-544.4543932,0.00019178,2]
[347248144,1735630146186,-500.0,0.00019178,2]
[347248145,1735630146208,-500.0,0.00019178,2]
[347248146,1735630146229,-958.89,0.00019178,2]
[347248147,1735630146252,-958.89,0.00019178,2]
[347248148,1735630146273,-958.89,0.00019178,2]
[347248149,1735630146295,-958.89,0.00019178,2]
[347248150,1735630146316,-151.0,0.00019178,2]
[347248151,1735630146337,-500.0,0.00019178,2]
[347248152,1735630146359,-500.0,0.00019178,2]
[347248153,1735630146381,-422.5715311,0.00019178,2]
[347248154,1735630146402,-698.45,0.00019178,2]
[347248155,1735630146424,-500.0,0.00019178,2]
[347248156,1735630146446,-508.74944641,0.00019178,2]
[347248157,1735630146467,-151.0,0.00019178,2]
[347248158,1735630146487,-151.0,0.00019178,2]
[347248159,1735630146508,-151.0,0.00019178,2]
[347248160,1735630146530,-500.0,0.00019178,2]
[347248161,1735630146551,-500.0,0.00019178,2]
[347248162,1735630146572,-500.0,0.00019178,2]
[347248163,1735630146592,-303.56437285,0.00019178,2]
[347248164,1735630146614,-507.22171904,0.00019178,2]
[347248165,1735630146636,-151.0,0.00019178,2]
[347248166,1735630146658,-500.0,0.00019178,2]
[347248167,1735630146678,-151.0,0.00019178,2]
[347248168,1735630146701,-151.0,0.00019178,2]
[347248169,1735630146721,-500.0,0.00019178,2]
[347248170,1735630146741,-500.0,0.00019178,2]
[347248171,1735630146762,-500.0,0.00019178,2]
[347248172,1735630146783,-500.0,0.00019178,2]
[347248173,1735630146805,-500.0,0.00019178,2]
[347248174,1735630146827,-500.0,0.00019178,2]
[347248175,1735630146848,-503.12888777,0.00019178,2]
[347248176,1735630146869,-500.0,0.00019178,2]
[347248177,1735630146890,-151.0,0.00019178,2]
[347248178,1735630146912,-500.0,0.00019178,2]
[347248179,1735630146933,-194.580772,0.00019178,2]
[347248180,1735630146954,-500.0,0.00019178,2]
[347248181,1735630146977,-853.22,0.00019178,2]
[347248182,1735630147000,-500.0,0.00019178,2]
[347248183,1735630147021,-500.0,0.00019178,2]
[347248184,1735630147042,-500.0,0.00019178,2]
[347248185,1735630147063,-500.0,0.00019178,2]
[347248186,1735630147084,-500.0,0.00019178,2]
[347248187,1735630147104,-500.0,0.00019178,2]
[347248188,1735630147124,-500.0,0.00019178,2]
[347248189,1735630147147,-2855.56,0.00019178,2]
[347248190,1735630147167,-500.0,0.00019178,2]
[347248191,1735630147188,-511.64,0.00019178,2]
[347248192,1735630147210,-500.0,0.00019178,2]
[347248193,1735630147232,-1266.46,0.00019178,2]
[347248194,1735630147253,-500.0,0.00019178,2]
[347248195,1735630147277,-17230.97,0.00019178,2]
[347248196,1735630147297,-151.0,0.00019178,2]
[347248197,1735630147389,-265.14246166,0.00019178,2]
[347248198,1735630147410,-500.0,0.00019178,2]
[347248199,1735630147432,-500.0,0.00019178,2]
[347248200,1735630147452,-500.0,0.00019178,2]
[347248201,1735630147475,-574.56,0.00019178,2]
[347248202,1735630147498,-5362.24,0.00019178,2]
[347248203,1735630147520,-500.0,0.00019178,2]
[347248204,1735630147541,-500.0,0.00019178,2]
[347248205,1735630147562,-506.1785263,0.00019178,2]
[347248206,1735630147584,-500.0,0.00019178,2]
[347248207,1735630147605,-500.0,0.00019178,2]
[347248208,1735630147630,-500.0,0.00019178,2]
[347248209,1735630147651,-154.295124,0.00019178,2]
[347248210,1735630147674,-500.0,0.00019178,2]
[347248211,1735630147696,-500.0,0.00019178,2]
[347248212,1735630147718,-500.0,0.00019178,2]
[347248213,1735630147741,-500.0,0.00019178,2]
[347248214,1735630147763,-500.0,0.00019178,2]
[347248215,1735630147785,-151.0,0.00019178,2]
[347248216,1735630147807,-151.0,0.00019178,2]
[347248217,1735630147829,-500.0,0.00019178,2]
[347248218,1735630147850,-151.0,0.00019178,2]
[347248219,1735630147872,-151.0,0.00019178,2]
[347248220,1735630147894,-500.0,0.00019178,2]
[347248221,1735630147915,-500.0,0.00019178,2]
[347248222,1735630147936,-501.51478462,0.00019178,2]
[347248223,1735630147960,-500.0,0.00019178,2]
[347248224,1735630147982,-501.89999511,0.00019178,2]
[347248225,1735630148006,-1210.41,0.00019178,2]
[347248226,1735630148029,-500.0,0.00019178,2]
[347248227,1735630148051,-500.0,0.00019178,2]
[347248228,1735630148073,-500.65587421,0.00019178,2]
[347248229,1735630148093,-500.0,0.00019178,2]
[347248230,1735630148115,-500.0,0.00019178,2]
[347248231,1735630148137,-500.0,0.00019178,2]
[347248232,1735630148159,-500.0,0.00019178,2]
[347248233,1735630148180,-500.0,0.00019178,2]
[347248234,1735630148204,-603.06,0.00019178,2]
[347248235,1735630148226,-500.0,0.00019178,2]
[347248236,1735630148249,-500.0,0.00019178,2]
[347248237,1735630148273,-500.0,0.00019178,2]
[347248238,1735630148302,-500.0,0.00019178,2]
[347248239,1735630148326,-500.0,0.00019178,2]
[347248240,1735630148350,-500.0,0.00019178,2]
[347248241,1735630148373,-500.0,0.00019178,2]
[347248242,1735630148396,-500.0,0.00019178,2]
[347248243,1735630148418,-500.0,0.00019178,2]
[347248244,1735630148440,-500.0,0.00019178,2]
[347248245,1735630148463,-500.0,0.00019178,2]
[347248246,1735630148484,-500.0,0.00019178,2]
[347248247,1735630148507,-500.0,0.00019178,2]